bitfinex-derivatives/quotes_SOLF0:USTF0_20250829
["timestamp","ask_amount","ask_price","bid_price","bid_amount"]
[1756499063239,0.03296666,202.36,202.28,10.35626511]
[1756499063439,0.03296666,202.36,202.29,12.0081]
[1756499063638,0.03296666,202.36,202.29,7.56]
[1756499064240,0.03296666,202.36,202.29,12.0083]
[1756499064631,0.03296666,202.36,202.3,4.4479]
[1756499065636,0.03296666,202.36,202.34,5.90796511]
[1756499065837,7.52,202.46,202.35,7.56]
[1756499066542,7.52,202.46,202.36,4.4467]
[1756499067346,7.52,202.46,202.39,0.0350013]
[1756499071048,7.52,202.51,202.39,7.5950013]
[1756499071545,7.52,202.51,202.39,7.56]
[1756499071747,7.52,202.51,202.43,0.03557682]
[1756499076148,7.52,202.51,202.43,4.48067682]
[1756499077347,7.55,202.46,202.29,13.32855388]
[1756499077555,7.55,202.45,202.29,7.82]
[1756499077851,7.55,202.45,202.3,4.4481]
[1756499078449,7.55,202.42,202.29,7.82]
[1756499078651,8.19021029,202.57,202.28,4.4485]
[1756499078652,0.03233818,202.4,202.32,7.82]
[1756499078849,0.03233818,202.4,202.32,12.2676]
[1756499079050,7.55,202.41,202.32,7.82]
[1756499079444,0.03771788,202.38,202.32,7.82]
[1756499081152,0.03771788,202.38,202.32,13.72796511]
[1756499081859,0.03771788,202.38,202.36,7.82]
[1756499082247,0.03771788,202.38,202.33,7.82]
[1756499082544,0.03771788,202.38,202.37,7.82]
[1756499088856,0.03771788,202.38,202.37,8.32]
[1756499091451,18.26,202.45,202.37,8.32]
[1756499091452,1.1923,202.45,202.38,7.82]
[1756499091759,7.55,202.56,202.45,7.82]
[1756499091959,7.55,202.56,202.48,4.444]
[1756499092454,7.55,202.56,202.44,4.445]
[1756499092656,13.45796511,202.56,202.5,0.03136913]
[1756499093060,22.39,202.52,202.34,5.51991771]
[1756499093257,7.55,202.43,202.29,5.51991771]
[1756499093560,7.55,202.43,202.28,5.51991771]
[1756499093861,14.22,202.42,202.3,12.2679]
[1756499094256,0.03476051,202.38,202.3,12.2679]
[1756499094653,0.03476051,202.38,202.3,7.82]
[1756499094865,0.03476051,202.38,202.33,11.42788282]
[1756499095057,0.03476051,202.38,202.34,7.82]
[1756499095259,0.03476051,202.38,202.33,5.90796511]
[1756499095658,0.03476051,202.38,202.34,7.82]
[1756499096062,0.03476051,202.38,202.33,10.35536511]
[1756499096258,0.03476051,202.38,202.34,7.82]
[1756499096661,0.03476051,202.38,202.33,15.87528282]
[1756499097060,0.03476051,202.38,202.34,7.82]
[1756499097254,0.03476051,202.38,202.33,15.87528282]
[1756499097461,0.03476051,202.38,202.34,7.82]
[1756499098665,0.03476051,202.38,202.35,7.82]
[1756499100159,0.03476051,202.38,202.33,13.33991771]
[1756499100360,0.03476051,202.38,202.35,7.82]
[1756499100766,0.03476051,202.38,202.37,7.82]
[1756499101459,14.22,202.42,202.39,7.82]
[1756499101664,14.22,202.42,202.38,7.82]
[1756499101963,14.22,202.42,202.37,5.90796511]
[1756499102265,14.22,202.42,202.35,0.03464134]
[1756499102455,14.22,202.42,202.38,7.82]
[1756499102658,14.22,202.42,202.37,5.51991771]
[1756499102857,14.22,202.42,202.4,4.4457]
[1756499103257,14.22,202.42,202.4,12.2657]
[1756499103463,14.22,202.42,202.38,4.4463]
[1756499103962,14.22,202.42,202.38,12.2663]
[1756499104379,14.22,202.42,202.39,7.82]
[1756499105077,14.22,202.42,202.36,4.4467]
[1756499105273,14.22,202.42,202.35,0.03464134]
[1756499105674,7.55,202.41,202.35,0.03464134]
[1756499109680,13.45796511,202.41,202.35,0.03464134]
[1756499109875,13.95796511,202.41,202.35,0.03464134]
[1756499110080,7.8,202.37,202.25,5.51991771]
[1756499110382,7.8,202.37,202.23,7.46]
[1756499110681,14.22,202.42,202.22,107.42849738]
[1756499110682,5.90796511,202.35,202.22,107.42849738]
[1756499110976,7.8,202.34,202.2,5.51991771]
[1756499111179,5.90796511,202.35,202.19,12.97991771]
[1756499111376,0.03402067,202.31,202.2,5.90796511]
[1756499111582,0.03402067,202.31,202.21,7.46]
[1756499112277,0.03402067,202.31,202.24,7.46]
[1756499112486,0.03402067,202.31,202.24,12.97991771]
[1756499112784,0.03402067,202.31,202.28,11.9084]
[1756499113079,0.03402067,202.31,202.25,7.46]
[1756499113284,0.03402067,202.31,202.25,12.97991771]
[1756499114082,0.03402067,202.31,202.3,4.4481]
[1756499114285,0.03402067,202.31,202.3,11.9081]
[1756499116585,0.03402067,202.31,202.3,12.4081]
[1756499117177,7.8,202.41,202.34,4.4472]
[1756499117980,14.22,202.42,202.35,4.4468]
[1756499118178,14.22,202.42,202.34,7.46]
[1756499118487,14.22,202.42,202.36,0.0341882]
[1756499118684,14.22,202.42,202.36,4.4807882]
[1756499119284,14.22,202.42,202.36,7.4941882]
[1756499120082,14.22,202.42,202.36,0.0341882]
[1756499120288,22.02,202.42,202.36,0.0341882]
[1756499122889,14.22,202.42,202.37,5.90796511]
[1756499123087,14.22,202.42,202.38,7.46]
[1756499123495,14.22,202.42,202.37,5.90796511]
[1756499123992,14.22,202.42,202.38,7.46]
[1756499124392,14.22,202.42,202.36,0.0341882]
[1756499124894,7.8,202.49,202.36,0.0341882]
[1756499125187,7.8,202.49,202.37,7.46]
[1756499125392,7.8,202.49,202.38,5.90796511]
[1756499125587,7.8,202.49,202.41,0.03263855]
[1756499133396,7.8,202.46,202.34,4.4471]
[1756499133593,7.8,202.46,202.3,7.46]
[1756499133594,7.8,202.45,202.3,7.46]
[1756499134193,7.8,202.43,202.3,7.46]
[1756499134697,0.03446916,202.39,202.32,4.4476]
[1756499134995,7.83446916,202.39,202.3,7.46]
[1756499135801,0.03446916,202.39,202.33,7.46]
[1756499137402,0.03446916,202.39,202.33,11.9075]
[1756499137599,7.39446916,202.39,202.31,5.51991771]
[1756499137804,7.39446916,202.39,202.29,337.53991771]
[1756499137996,7.39446916,202.39,202.3,7.48]
[1756499138202,7.39446916,202.39,202.3,12.99991771]
[1756499138402,7.39446916,202.39,202.3,7.48]
[1756499138902,7.39446916,202.39,202.31,4.4477]
[1756499139297,7.39446916,202.39,202.3,7.48]
[1756499139895,7.36,202.38,202.27,5.51991771]
[1756499140105,7.36,202.38,202.26,5.51991771]
[1756499140604,0.03336125,202.34,202.26,5.51991771]
[1756499141102,0.03336125,202.34,202.27,4.4486]
[1756499141293,0.03336125,202.34,202.27,7.48]
[1756499142004,0.03336125,202.34,202.31,7.48]
[1756499142605,0.03336125,202.34,202.3,11.42788282]
[1756499143105,0.03336125,202.34,202.33,7.48]
[1756499143405,0.03336125,202.34,202.33,13.38796511]
[1756499148802,0.03336125,202.34,202.33,7.48]
[1756499149007,0.03336125,202.34,202.3,7.48]
[1756499149204,0.03336125,202.34,202.29,103.93991771]
[1756499150007,7.39336125,202.34,202.29,110.3482]
[1756499151006,7.39336125,202.34,202.29,7.48]
[1756499151401,0.03336125,202.34,202.27,5.51991771]
[1756499151606,0.03336125,202.34,202.28,7.48]
[1756499152710,0.03336125,202.34,202.3,4.448]
[1756499153111,0.03336125,202.34,202.3,11.928]
[1756499153406,0.03336125,202.34,202.3,7.48]
[1756499153806,0.03336125,202.34,202.28,11.42788282]
[1756499154008,0.03336125,202.34,202.29,7.48]
[1756499154202,0.03336125,202.34,202.28,11.42788282]
[1756499154510,7.39336125,202.34,202.27,5.51991771]
[1756499154810,7.39336125,202.34,202.24,5.90796511]
[1756499154811,7.39336125,202.34,202.24,5.51991771]
[1756499155412,7.39336125,202.34,202.26,4.4488]
[1756499156315,7.39336125,202.34,202.24,9.96921771]
[1756499156514,7.39336125,202.34,202.24,5.51991771]
[1756499156905,7.39336125,202.34,202.25,4.4491]
[1756499157315,7.39336125,202.34,202.23,5.51991771]
[1756499157515,0.03336125,202.34,202.23,5.51991771]
[1756499157716,7.36,202.33,202.23,5.51991771]
[1756499158214,7.36,202.33,202.22,345.03991771]
[1756499158410,0.03336125,202.34,202.22,345.03991771]
[1756499158616,7.36,202.34,202.22,345.03991771]
[1756499158910,0.03508837,202.3,202.24,4.4493]
[1756499159116,7.36,202.29,202.21,130.9]
[1756499159311,7.36,202.29,202.21,4.4499]
[1756499159714,7.36,202.29,202.18,149.66788282]
[1756499160107,7.36,202.29,202.19,4.4504]
[1756499160314,7.36,202.28,202.15,5.51991771]
[1756499160516,5.90796511,202.29,202.14,12.99991771]
[1756499160517,0.03327032,202.26,202.14,12.99991771]
[1756499160717,7.36,202.25,202.14,12.99991771]
[1756499161419,0.03263193,202.22,202.14,12.99991771]
[1756499161620,0.03263193,202.22,202.14,7.48]
[1756499162119,0.03263193,202.22,202.15,5.90796511]
[1756499162313,0.03263193,202.22,202.1,447.0404229]
[1756499162314,0.03263193,202.22,202.16,7.48]
[1756499164623,0.03263193,202.22,202.16,11.931]
[1756499164823,0.03263193,202.22,202.16,7.48]
[1756499165223,7.36,202.21,202.11,7.48]
[1756499166422,7.36,202.21,202.13,4.4517]
[1756499167429,7.36,202.21,202.11,11.9322]
[1756499168730,0.03263193,202.22,202.1,332.1]
[1756499168931,7.6,202.21,202.09,4.4527]
[1756499169124,7.6,202.21,202.11,7.26]
[1756499169426,5.90796511,202.15,202.06,3.0]
[1756499169626,15.96,202.14,202.06,3.0]
[1756499169823,5.90796511,202.12,202.06,3.0]
[1756499170227,7.6,202.11,202.06,3.0]
[1756499170528,5.94457593,202.12,202.06,3.0]
[1756499171024,7.6,202.11,202.06,3.0]
[1756499171228,7.6,202.08,202.02,10.4098]
[1756499171431,5.90796511,202.06,202.02,10.4098]
[1756499171630,7.6,202.05,202.02,10.4098]
[1756499172031,5.94493685,202.06,202.02,10.4098]
[1756499172233,7.6,202.05,202.02,10.4098]
[1756499172429,5.94493685,202.06,202.02,10.4098]
[1756499172629,5.90796511,202.03,202.02,10.4098]
[1756499172825,13.50796511,202.03,201.88,7.26]
[1756499173330,13.50796511,202.03,201.9,4.4569]
[1756499173531,0.03547368,201.98,201.91,7.26]
[1756499175922,0.03547368,201.98,201.93,7.26]
[1756499176128,0.03547368,201.98,201.92,7.26]
[1756499176635,0.03547368,201.98,201.88,7.26]
[1756499177728,0.03547368,201.98,201.88,13.16796511]
[1756499177932,0.03547368,201.98,201.89,7.26]
[1756499178436,7.63547368,201.98,201.89,7.26]
[1756499180532,7.63547368,201.98,201.9,4.4569]
[1756499182133,7.63547368,201.98,201.89,7.26]
[1756499182328,0.03547368,201.98,201.89,7.26]
[1756499182932,0.03547368,201.98,201.92,7.26]
[1756499183125,7.6,202.08,201.96,7.26]
[1756499183432,7.6,202.13,201.99,7.26]
[1756499184436,7.6,202.13,202.04,0.03433619]
[1756499187936,14.27,202.12,202.04,0.03433619]
[1756499188138,14.27,202.12,202.04,4.48793619]
[1756499188637,14.27,202.12,202.04,0.03433619]
[1756499189836,14.27,202.12,202.05,7.26]
[1756499190437,14.27,202.12,202.07,4.453]
[1756499190641,14.27,202.12,202.05,7.26]
[1756499192036,7.6,202.11,202.04,0.03433619]
[1756499192739,7.6,202.09,202.04,0.03433619]
[1756499192937,5.90796511,202.1,202.04,0.03433619]
[1756499193739,7.6,202.09,202.04,0.03433619]
[1756499193933,5.90796511,202.1,202.04,0.03433619]
[1756499194138,7.6,202.09,202.04,0.03433619]
[1756499194443,5.90796511,202.1,202.04,0.03433619]
[1756499194737,7.6,202.06,201.92,7.26]
[1756499194943,7.6,202.03,201.92,7.26]
[1756499195644,7.6,202.03,201.92,11.7162]
[1756499195845,7.6,202.03,201.92,7.26]
[1756499196141,0.03238752,202.0,201.92,7.26]
[1756499196343,0.03238752,202.0,201.92,11.7164]
[1756499197340,0.03238752,202.0,201.94,7.92]
[1756499197743,5.90796511,202.07,201.94,7.92]
[1756499198047,5.90796511,202.07,201.93,10.36406511]
[1756499198048,0.03451578,201.99,201.93,10.36406511]
[1756499198251,0.03451578,201.99,201.93,13.82796511]
[1756499198448,0.03451578,201.99,201.93,7.92]
[1756499201344,0.03451578,201.99,201.98,7.92]
[1756499203244,0.03451578,201.99,201.85,5.51991771]
[1756499203442,0.03451578,201.99,201.93,5.90796511]
[1756499203646,7.87,202.05,201.94,7.92]
[1756499204040,0.03393612,201.98,201.93,5.90796511]
[1756499204244,0.03393612,201.98,201.97,4.4553]
[1756499204445,0.03393612,201.98,201.97,12.3753]
[1756499205451,0.03393612,201.98,201.97,7.92]
[1756499207848,0.03393612,201.98,201.97,8.42]
[1756499208048,14.27,202.12,201.98,7.92]
[1756499208348,14.27,202.12,202.01,7.92]
[1756499208655,7.87,202.11,202.01,7.92]
[1756499209153,13.77796511,202.11,201.97,7.92]
[1756499209357,13.77796511,202.11,202.04,0.03144787]
[1756499210555,7.87,202.07,202.04,0.03144787]
[1756499210956,7.87,202.05,202.04,0.03144787]
[1756499211458,7.87,202.05,201.89,8.25991771]
[1756499211459,6.40796511,202.05,201.88,11.42788282]
[1756499211660,7.87,202.04,201.89,7.92]
[1756499211959,5.90796511,202.02,201.89,7.92]
[1756499212254,7.87,202.01,201.89,7.92]
[1756499212658,0.03187373,201.97,201.89,7.92]
[1756499214158,0.03187373,201.97,201.94,7.92]
[1756499214361,0.03187373,201.97,201.93,4.456]
[1756499214559,0.03187373,201.97,201.94,7.92]
[1756499215561,0.03187373,201.97,201.9,7.92]
[1756499217757,7.87,201.96,201.86,332.64]
[1756499218352,0.03187373,201.97,201.87,7.92]
[1756499219863,0.03187373,201.97,201.87,13.43991771]
[1756499220265,0.03187373,201.97,201.91,7.92]
[1756499220654,0.03187373,201.97,201.91,12.3765]
[1756499220860,0.03187373,201.97,201.9,7.92]
[1756499220861,14.27,201.96,201.9,7.92]
[1756499222264,14.27,201.96,201.9,13.43991771]
[1756499222665,14.27,201.96,201.9,17.89681771]
[1756499222862,14.27,201.96,201.91,13.82796511]
[1756499223163,14.27,201.96,201.93,7.92]
[1756499223363,14.27,201.96,201.94,4.4558]
[1756499223569,14.27,201.96,201.95,7.92]
[1756499223868,14.27,201.96,201.93,7.92]
[1756499225169,14.27,201.96,201.92,7.92]
[1756499225370,14.27,201.96,201.95,7.92]
[1756499227373,14.27,201.96,201.93,5.51991771]
[1756499227571,14.27,201.96,201.92,4.4564]
[1756499227572,14.27,201.96,201.92,11.9964]
[1756499228069,14.27,201.96,201.92,4.4564]
[1756499228271,14.27,201.96,201.93,7.54]
[1756499229275,14.27,201.96,201.92,4.4564]
[1756499229474,7.7,201.95,201.91,5.51991771]
[1756499229667,7.7,201.95,201.89,13.05991771]
[1756499230170,7.7,201.95,201.88,5.51991771]
[1756499230772,7.7,201.95,201.89,4.4571]
[1756499231574,7.7,201.95,201.88,5.51991771]
[1756499231972,7.7,201.95,201.87,4.4575]
[1756499232177,7.7,201.95,201.86,338.15991771]
[1756499232973,7.7,201.95,201.86,332.64]
[1756499233276,0.03220379,201.93,201.86,338.15991771]
[1756499234377,0.03220379,201.93,201.87,7.54]
[1756499234584,0.03220379,201.93,201.9,7.54]
[1756499234973,0.03220379,201.93,201.91,11.9964]
[1756499236180,0.03220379,201.93,201.89,4.457]
[1756499236376,0.03220379,201.93,201.9,7.54]
[1756499236981,7.73220379,201.93,201.88,5.51991771]
[1756499237178,7.73220379,201.93,201.88,13.05991771]
[1756499237581,7.73220379,201.93,201.9,4.4567]
[1756499237781,0.03220379,201.93,201.9,4.4567]
[1756499239186,0.03220379,201.93,201.91,4.4565]
[1756499239381,7.7,201.92,201.89,5.51991771]
[1756499239587,7.7,201.92,201.88,4.4572]
[1756499239789,7.73220379,201.93,201.88,9.97711771]
[1756499240388,7.73220379,201.93,201.88,4.4572]
[1756499242085,7.73220379,201.93,201.89,4.457]
[1756499242485,0.03220379,201.93,201.89,4.457]
[1756499246383,7.73220379,201.93,201.89,4.457]
[1756499247686,7.73220379,201.93,201.85,5.51991771]
[1756499247881,7.73220379,201.93,201.84,135.85991771]
[1756499248384,7.73220379,201.93,201.87,4.4574]
[1756499248584,0.03220379,201.93,201.86,13.05991771]
[1756499249387,0.03220379,201.93,201.87,5.51991771]
[1756499250787,0.03220379,201.93,201.9,4.4568]
[1756499251891,0.03220379,201.93,201.92,7.54]
[1756499253088,0.03220379,201.93,201.88,5.51991771]
[1756499253291,0.03220379,201.93,201.89,5.51991771]
[1756499253591,0.03220379,201.93,201.9,7.54]
[1756499253990,0.03220379,201.93,201.89,5.51991771]
[1756499254390,0.03220379,201.93,201.9,7.54]
[1756499254594,0.03220379,201.93,201.89,5.51991771]
[1756499254786,0.03220379,201.93,201.91,11.9965]
[1756499255800,0.03220379,201.93,201.92,7.54]
[1756499256000,0.03220379,201.93,201.9,13.05991771]
[1756499256197,0.03220379,201.93,201.9,7.54]
[1756499256391,0.03220379,201.93,201.9,13.05991771]
[1756499256589,0.03220379,201.93,201.92,7.39]
[1756499258899,0.53220379,201.93,201.87,5.51991771]
[1756499259099,0.53220379,201.93,201.84,15.66987657]
[1756499259100,7.68220379,201.93,201.85,5.51991771]
[1756499259292,7.65,201.93,201.84,12.90991771]
[1756499259698,0.03174869,201.91,201.84,12.90991771]
[1756499259899,0.03174869,201.91,201.84,7.39]
[1756499260193,0.03174869,201.91,201.83,5.51991771]
[1756499260393,3.70819716,201.86,201.81,5.51991771]
[1756499260599,11.35819716,201.86,201.78,5.51991771]
[1756499260799,11.35819716,201.86,201.79,5.51991771]
[1756499261195,0.0335531,201.84,201.79,5.51991771]
[1756499261394,0.0335531,201.84,201.78,12.90991771]
[1756499261597,0.0335531,201.84,201.81,11.8487]
[1756499262403,0.0335531,201.84,201.82,4.4585]
[1756499262602,0.0335531,201.84,201.82,11.8485]
[1756499262798,0.0335531,201.84,201.82,4.4585]
[1756499263005,0.0335531,201.84,201.79,7.39]
[1756499263204,0.0335531,201.84,201.8,4.459]
[1756499263508,11.39175026,201.84,201.76,5.51991771]
[1756499264201,11.39175026,201.84,201.75,7.39]
[1756499264202,11.39175026,201.84,201.75,12.90991771]
[1756499265406,11.39175026,201.84,201.78,4.4593]
[1756499265605,3.74175026,201.84,201.75,7.39]
[1756499265808,0.0335531,201.84,201.76,5.51991771]
[1756499266006,0.0335531,201.84,201.78,3.70819716]
[1756499266803,0.0335531,201.84,201.77,7.39]
[1756499267205,0.0335531,201.84,201.83,11.8484]
[1756499267702,25.60819716,201.94,201.86,4.4577]
[1756499267906,25.60819716,201.94,201.83,7.39]
[1756499268706,0.03347233,201.91,201.83,7.39]
[1756499269203,0.03347233,201.91,201.86,4.4576]
[1756499269397,0.03347233,201.91,201.85,3.70819716]
[1756499270706,0.03347233,201.91,201.87,4.4573]
[1756499270907,7.68347233,201.91,201.87,4.4573]
[1756499271404,0.03347233,201.91,201.89,4.457]
[1756499271809,0.03347233,201.91,201.9,7.39]
[1756499273509,7.65,201.9,201.76,5.51991771]
[1756499273709,7.65,201.87,201.74,3.70819716]
[1756499274206,87.75,201.94,201.7,5.51991771]
[1756499274207,7.65,201.82,201.7,5.51991771]
[1756499274414,7.65,201.82,201.71,3.70819716]
[1756499275510,0.03140351,201.79,201.74,3.70819716]
[1756499275813,0.03140351,201.79,201.74,11.09819716]
[1756499276206,0.03140351,201.79,201.74,7.39]
[1756499276813,0.03140351,201.79,201.75,4.46]
[1756499277015,0.03140351,201.79,201.74,7.39]
[1756499277214,0.03140351,201.79,201.72,11.09819716]
[1756499277510,0.03140351,201.79,201.72,7.39]
[1756499277714,0.03140351,201.79,201.77,4.4596]
[1756499277907,0.03140351,201.79,201.72,7.39]
[1756499279009,0.03140351,201.79,201.75,4.46]
[1756499279205,0.03140351,201.79,201.75,11.85]
[1756499280207,0.03140351,201.79,201.71,7.39]
[1756499281018,0.03140351,201.79,201.76,4.4598]
[1756499281215,0.03140351,201.79,201.73,5.94126553]
[1756499281414,0.03140351,201.79,201.74,7.39]
[1756499281720,7.65,201.87,201.78,7.39]
[1756499281920,0.03301148,201.79,201.78,7.39]
[1756499282222,7.65,201.87,201.78,7.39]
[1756499282518,7.65,201.87,201.79,4.4591]
[1756499283820,7.65,201.87,201.78,7.39]
[1756499284118,7.65,201.9,201.78,7.39]
[1756499284512,0.03236546,201.86,201.76,5.94126553]
[1756499284716,0.03236546,201.86,201.77,7.39]
[1756499285520,0.03236546,201.86,201.82,4.4584]
[1756499286625,0.03236546,201.86,201.79,4.4591]
[1756499286922,0.03236546,201.86,201.77,7.39]
[1756499288724,0.03236546,201.86,201.81,4.4587]
[1756499289025,0.03236546,201.86,201.74,5.51991771]
[1756499289026,0.86190883,202.01,201.86,7.23]
[1756499289224,0.86190883,202.01,201.93,11.6862]
[1756499289618,0.86190883,202.01,201.87,7.23]
[1756499289925,7.56,201.98,201.89,5.94126553]
[1756499290424,7.56,201.98,201.9,7.23]
[1756499290725,7.56,201.98,201.92,4.4564]
[1756499291024,0.86190883,202.01,201.93,7.23]
[1756499295636,0.86190883,202.01,201.92,4.4564]
[1756499295833,0.86190883,202.01,201.92,11.6864]
[1756499297335,4.56873864,202.01,201.92,11.6864]
[1756499297537,4.56873864,202.01,201.93,7.23]
[1756499299229,0.86190883,202.01,201.93,7.23]
[1756499299432,0.4921615,201.94,201.93,7.23]
[1756499299633,6.15e-05,201.94,201.93,7.23]
[1756499301435,6.15e-05,201.94,201.89,5.51991771]
[1756499301738,7.56,201.95,201.88,0.03173961]
[1756499302633,7.56,202.04,201.95,7.23]
[1756499303437,7.56,202.04,201.97,0.03644196]
[1756499311746,7.56,201.97,201.85,7.23]
[1756499311947,7.56,201.97,201.81,106.31272174]
[1756499312349,5.92811464,201.94,201.81,106.31272174]
[1756499312550,7.56,201.93,201.81,106.31272174]
[1756499312742,5.92811464,201.94,201.81,106.31272174]
[1756499312942,7.59516007,201.9,201.81,106.31272174]
[1756499316050,7.56,201.89,201.81,106.31272174]
[1756499317048,0.03516007,201.9,201.75,137.04811464]
[1756499317049,0.03516007,201.9,201.75,139.03]
[1756499317251,7.44,201.89,201.75,139.03]
[1756499317453,7.44,201.87,201.75,7.91]
[1756499317847,0.035909,201.84,201.75,7.91]
[1756499318249,7.475909,201.84,201.75,7.91]
[1756499321053,0.035909,201.84,201.75,7.91]
[1756499323357,0.035909,201.84,201.77,7.91]
[1756499323952,0.035909,201.84,201.77,138.51]
[1756499324154,0.035909,201.84,201.78,7.91]
[1756499329254,0.035909,201.84,201.79,3.71103128]
[1756499329459,7.44,201.83,201.74,7.91]
[1756499329654,7.44,201.83,201.76,7.91]
[1756499330059,11.15103128,201.88,201.76,7.91]
[1756499330260,11.15103128,201.88,201.78,3.71103128]
[1756499330461,0.0350543,201.82,201.78,3.71103128]
[1756499330663,0.0350543,201.82,201.79,7.91]
[1756499330865,0.0350543,201.82,201.78,3.71103128]
[1756499331362,0.0350543,201.82,201.79,7.91]
[1756499331562,0.0350543,201.82,201.78,3.71103128]
[1756499331958,0.0350543,201.82,201.79,7.91]
[1756499332764,0.0350543,201.82,201.78,3.71103128]
[1756499333356,0.0350543,201.82,201.79,7.91]
[1756499333865,0.0350543,201.82,201.78,3.71103128]
[1756499334060,0.0350543,201.82,201.79,7.91]
[1756499334359,0.0350543,201.82,201.78,3.71103128]
[1756499334765,0.0350543,201.82,201.79,7.91]
[1756499334974,0.0350543,201.82,201.78,3.71103128]
[1756499335372,0.0350543,201.82,201.79,7.91]
[1756499335873,0.0350543,201.82,201.75,7.91]
[1756499335874,7.4750543,201.82,201.75,7.91]
[1756499336970,7.4750543,201.82,201.72,344.34103128]
[1756499337379,7.44,201.81,201.72,11.62103128]
[1756499338074,3.74608558,201.82,201.72,11.62103128]
[1756499338271,7.44,201.81,201.72,11.62103128]
[1756499338675,7.44,201.81,201.72,7.91]
[1756499339979,7.44,201.81,201.7,3.71103128]
[1756499340477,7.44,201.81,201.71,7.91]
[1756499340684,0.03642026,201.78,201.71,7.91]
[1756499340877,7.47642026,201.78,201.71,7.91]
[1756499341377,2.026e-05,201.78,201.77,7.91]
[1756499342181,2.026e-05,201.78,201.72,7.94298309]
[1756499342779,2.026e-05,201.78,201.73,3.71103128]
[1756499342978,2.026e-05,201.78,201.74,7.91]
[1756499343181,2.026e-05,201.78,201.73,3.71103128]
[1756499343379,2.026e-05,201.78,201.74,7.91]
[1756499343679,2.026e-05,201.78,201.72,11.65401437]
[1756499346277,2.026e-05,201.78,201.72,7.94298309]
[1756499346278,7.44002026,201.78,201.72,7.94298309]
[1756499346781,7.44002026,201.78,201.72,0.03298309]
[1756499347181,7.44002026,201.78,201.72,7.58298309]
[1756499347577,7.44002026,201.78,201.72,0.03298309]
[1756499360388,3.71103128,201.76,201.72,0.03298309]
[1756499360694,11.54103128,201.73,201.72,0.03298309]
[1756499362190,12.04103128,201.73,201.72,0.03298309]
[1756499362396,7.83,201.69,201.62,7.55]
[1756499362893,7.83,201.69,201.59,5.51991771]
[1756499363089,7.83,201.69,201.58,16.78094899]
[1756499363291,3.71103128,201.67,201.58,7.55]
[1756499363896,0.03172756,201.65,201.58,7.55]
[1756499364397,0.03172756,201.65,201.58,11.26103128]
[1756499364997,0.03172756,201.65,201.58,7.55]
[1756499365397,0.03172756,201.65,201.58,11.26103128]
[1756499365795,0.03172756,201.65,201.59,7.55]
[1756499366994,0.03172756,201.65,201.62,7.55]
[1756499367201,0.03172756,201.65,201.64,11.26103128]
[1756499368997,0.03172756,201.65,201.61,3.71103128]
[1756499369195,0.03172756,201.65,201.61,11.26103128]
[1756499369598,0.03172756,201.65,201.61,7.55]
[1756499369898,0.03172756,201.65,201.6,3.71103128]
[1756499370100,0.03172756,201.65,201.61,7.55]
[1756499370598,0.03172756,201.65,201.6,3.71103128]
[1756499370794,0.03172756,201.65,201.61,7.55]
[1756499370991,0.03172756,201.65,201.6,3.71103128]
[1756499371596,0.03172756,201.65,201.61,7.55]
[1756499371793,0.03172756,201.65,201.6,3.71103128]
[1756499372801,0.03172756,201.65,201.61,7.55]
[1756499373193,0.03172756,201.65,201.6,3.71103128]
[1756499373895,0.03172756,201.65,201.61,7.55]
[1756499374597,0.03172756,201.65,201.6,3.71103128]
[1756499374801,0.03172756,201.65,201.61,7.55]
[1756499375199,0.03172756,201.65,201.6,3.71103128]
[1756499376302,0.03172756,201.65,201.61,7.55]
[1756499376506,7.83,201.64,201.56,7.55]
[1756499379410,7.83,201.64,201.57,3.71103128]